Cogmind - Beta 13 @@@ ROGUE MODE // 2024.04.17 @ 01:35:00 Player: Powerlich_soros Result: Destroyed by X-62 Marksman with Pulse Rifle Performance ------------- Evolutions (4) 2000 Regions Visited (6) 1200 Robots Destroyed (43) 215 Value Destroyed (1290) 1290 Prototype IDs (2) 40 Alien Tech Used (0) 0 Bonus (500) 500 TOTAL SCORE: 5245 Bonus ------- Entered DSFs 500 Cogmind --------- Core Integrity 0/850 Matter 231/300 Energy 94/100 System Corruption 6% Temperature Cool (10) Movement Hovering (60) Location -6/DSF Parts ------- > --- POWER (2) -------- (None) > --- PROPULSION (3) --- Airjet > --- UTILITY (8) ------ Advanced Visual Processing Unit > --- WEAPON (2) ------- Spear > --- INVENTORY (5) ---- Angular Momentum Engine Remote Datajack Spear Peak State ------------ > --- POWER ------------ Micro Nuclear Core > --- PROPULSION ------- Gravmag System Gravmag System Gravmag System > --- UTILITY ---------- Weight Redist. System Advanced Visual Processing Unit Advanced Sensor Array Improved Signal Interpreter Melee Analysis Suite Improved Melee Analysis Suite Core Analyzer Improved Light Armor Plating > --- WEAPON ----------- Spear Spear > --- INVENTORY -------- Gravmag System Gravmag System Remote Datajack [Rating: 52] Favorites ----------- Power Ion Engine Engine Ion Engine Power Core Micro Nuclear Core Propulsion Wheel Wheel Wheel Hover Unit Airjet Flight Unit Improved VTOL Module Utility Advanced Visual Processing Unit Device Sensor Array Storage Small Storage Unit Processor Advanced Visual Processing Unit Hackware Hacking Suite Protection Layered Light Armor Plating Weapon Spear Energy Gun Small Laser Ballistic Gun Assault Rifle Special Weapon Remote Datajack Impact Weapon Heavy Hammer Piercing Weapon Spear Special Melee Weapon Datajack Build | -11 -10 -9 -8 -7 -6 -6 ------- Run | Yrd Mat Mat Mat Fac Fac DSF Slots Evolved 8 | . . 2 2 2 2 . Power 1 | . . . . . 1 . Propulsion 1 | . . . . 1 . . Utility 6 | . . 2 2 1 1 . Weapon . | . . . . . . . Parts Attached 91 | 6 9 7 18 29 . 22 Power 9 | 1 1 . 4 1 . 2 Engine 7 | 1 1 . 3 . . 2 Core 2 | . . . 1 1 . . Reactor . | . . . . . . . Propulsion 38 | 2 1 2 8 9 . 16 Treads . | . . . . . . . Leg . | . . . . . . . Wheel 5 | 2 1 . . . . 2 Hover 27 | . . 2 5 6 . 14 Flight 6 | . . . 3 3 . . Utility 26 | 1 2 3 4 14 . 2 Device 12 | . 2 1 1 7 . 1 Storage 1 | 1 . . . . . . Processor 7 | . . . 2 4 . 1 Hackware 3 | . . 2 1 . . . Protection 3 | . . . . 3 . . Artifact . | . . . . . . . Weapon 18 | 2 5 2 2 5 . 2 Energy Gun 4 | . 4 . . . . . Energy Cannon . | . . . . . . . Ballistic Gun 2 | 2 . . . . . . Ballistic Cannon . | . . . . . . . Launcher . | . . . . . . . Special Weapon 2 | . . . . 2 . . Impact Weapon 3 | . . 1 1 1 . . Slashing Weapon . | . . . . . . . Piercing Weapon 4 | . . . . 2 . 2 Special Melee Weapon 3 | . 1 1 1 . . . Unidentified Prototypes 2 | . . . 1 1 . . Parts Lost 32 | . . . 11 5 . 16 Power 5 | . . . 3 . . 2 Propulsion 10 | . . . 2 1 . 7 Utility 13 | . . . 4 4 . 5 Weapon 4 | . . . 2 . . 2 Highest Loss Streak 9 | . . . 5 2 . 9 To Critical Strikes . | . . . . . . . Average Slot Usage (%) 83 | . 96 95 75 74 80 70 Engine 6 | . 14 11 5 . . 3 Core 1 | . . . 1 4 6 3 Wheel 7 | . 28 . . . . . Hover 9 | . . 21 5 13 13 11 Flight 3 | . . . 11 3 . . Device 12 | . 10 14 11 13 6 6 Storage 4 | . 14 7 . . . . Processor 10 | . . . 9 19 33 31 Hackware 5 | . . 18 18 . . . Protection 1 | . . . . 4 6 1 Energy Gun 6 | . 16 15 . . . . Ballistic Gun 2 | . 11 . . . . . Special Weapon 1 | . . . . 3 . . Impact Weapon 2 | . . 5 6 1 . . Piercing Weapon 3 | . . . . 7 13 10 Special Melee Weapon 1 | . . 1 4 . . . Naked Turns . | . . . . . . . Heaviest Build 27 | 13 17 15 12 20 13 27 Greatest Support 33 | 20 20 20 16 27 24 33 Greatest Overweight (x) 4 | 1 . 4 1 1 . 1 Average Overweight (x) . | . . . . . . . Largest Inventory Capacity 8 | 8 8 8 5 5 5 5 Average Capacity 6 | 7 8 6 5 5 5 5 Most Carried 8 | 2 8 8 5 5 5 5 Average Carried 4 | 1 5 6 3 3 5 2 Final Capacity 8 | 8 8 5 5 5 5 5 Final Carried 7 | 2 7 4 1 5 5 3 Class Distribution -------------------- 59% | Mutant 14% | Hacker-Mutant 9% | Hacker-Sprinter 7% | Sprinter 7% | Gladiator Dominant Class ---------------- Mutant | -10/Materials Hacker-Mutant | -9/Materials Hacker-Sprinter | -8/Materials Mutant | -7/Factory Mutant | -6/Factory Mutant | -6/DSF Resources | -11 -10 -9 -8 -7 -6 -6 ----------- Run | Yrd Mat Mat Mat Fac Fac DSF Matter Collected 944 | 237 166 79 121 260 . 81 Remotely . | . . . . . . . Salvage Created 1561 | . 399 12 311 578 . 261 Parts 98 | . 24 3 12 28 . 31 Haulers Intercepted 2 | . . . 1 1 . . Recyclers Shooed . | . . . . . . . Parts Field Recycled . | . . . . . . . Retrieved Matter . | . . . . . . . Parts Self-Destructed . | . . . . . . . Prevented . | . . . . . . . Kills | -11 -10 -9 -8 -7 -6 -6 ------- Run | Yrd Mat Mat Mat Fac Fac DSF Combat Hostiles Destroyed 30 | . 8 . 5 9 . 8 Melee 19 | . . . 2 9 . 8 Guns 8 | . 8 . . . . . Classes Destroyed 13 | . 4 . 3 4 . 2 Builder 2 | . . . . 2 . . Hauler 2 | . . . 1 1 . . Recycler 2 | . . . . 2 . . Mechanic 1 | . 1 . . . . . Operator 4 | . 2 1 1 . . . Watcher 2 | . 1 . . 1 . . Swarmer 3 | . . . . 3 . . Cutter 6 | . . . . . . 6 Grunt 13 | . 8 . 2 3 . . Brawler 1 | . . . 1 . . . Sentry 2 | . . . 2 . . . Specialist 2 | . . . . . . 2 Programmer 3 | . . . . 3 . . Best Kill Streak 5 | . 5 1 3 5 . 4 Combat Bots Only 5 | . 4 . 3 5 . 4 Max Kills in Single Turn 2 | . 2 1 1 1 . 1 Gunslinging 1 | . 1 . . . . . Exploded . | . . . . . . . Melee 1 | . . . 1 1 . 1 Uniques/NPCs Destroyed . | . . . . . . . Combat | -11 -10 -9 -8 -7 -6 -6 -------- Run | Yrd Mat Mat Mat Fac Fac DSF Hostile Shots Fired 437 | . 31 21 117 60 . 208 Missed 175 | . 5 9 55 20 . 86 Damage Taken 3666 | . 302 167 930 590 . 1677 Core 1498 | . 61 47 425 115 . 850 Absorbed by Shields . | . . . . . . . Core Remaining (%) 73 | 100 75 88 22 83 . . Volleys Fired 40 | . 36 4 . . . . Largest 2 | . 2 2 . . . . Hottest 105 | . 105 80 . . . . Shots Fired 79 | . 72 7 . . . . Gun 79 | . 72 7 . . . . Cannon . | . . . . . . . Launcher . | . . . . . . . Special . | . . . . . . . Kinetic 36 | . 36 . . . . . Thermal 43 | . 36 7 . . . . Explosive . | . . . . . . . Electromagnetic . | . . . . . . . Robot Hit Streak 16 | . 16 4 . . . . Robot Miss Streak 2 | . 2 1 . . . . Penetration Max . | . . . . . . . Secondary Targets 1 | . 1 . . . . . Max Gunslinging Chain 1 | . 1 . . . . . Shots Hit Robots 122 | . 59 6 20 27 . 10 Core Hits 49 | . 22 2 4 13 . 8 Critical Kills 2 | . . . 2 . . . Critical Parts Destroyed 3 | . . . 2 1 . . Critical Strikes 8 | . . . 4 4 . . Smash 5 | . . . 4 1 . . Impale 3 | . . . . 3 . . Melee Attacks 102 | . 4 9 30 41 . 18 Impact 40 | . . 8 26 6 . . Slashing . | . . . . . . . Piercing 53 | . . . . 35 . 18 Sneak Attacks 15 | . 4 1 5 5 . . Combat Hostiles . | . . . . . . . Follow-up Attacks 2 | . . . . 2 . . Damage Inflicted 2788 | . 677 73 683 1051 . 304 Guns 722 | . 677 45 . . . . Cannons . | . . . . . . . Explosions . | . . . . . . . Melee 2036 | . . 28 653 1051 . 304 Ramming 30 | . . . 30 . . . Kinetic 294 | . 294 . . . . . Thermal 428 | . 383 45 . . . . Explosive . | . . . . . . . Electromagnetic . | . . . . . . . Impact 742 | . . 28 653 61 . . Slashing . | . . . . . . . Piercing 1294 | . . . . 990 . 304 Highest Corruption 6 | . . . . 2 . 6 Average Corruption 1 | . . . . 1 . 5 Corruption Purged . | . . . . . . . Corruption Blocked . | . . . . . . . Effects 6 | . . . . 6 . . Energy Discharges 1 | . . . . 1 . . Data Loss (minor) 5 | . . . . 5 . . Overload Shots . | . . . . . . . Overflow Damage 287 | . . . 183 104 . . Projectiles . | . . . . . . . Explosions . | . . . . . . . Melee 287 | . . . 183 104 . . Knockbacks 2 | . . 1 1 . . . Impact 2 | . . 1 1 . . . Kinetic . | . . . . . . . Secondary . | . . . . . . . Self-Inflicted Damage 14 | . . . 14 . . . Shots . | . . . . . . . Rammed 5 | . . . 5 . . . Targets Rammed 5 | . . . 5 . . . Kicked . | . . . . . . . Crushed . | . . . . . . . Highest Temperature 178 | . 178 30 . . . . Average Temperature 50 | . 54 14 . . . . Received Heat Transfer 747 | . 171 54 189 135 . 198 Siege Activations . | . . . . . . . Robots Corrupted . | . . . . . . . Combat Hostiles . | . . . . . . . Parts Fried 4 | . . . 1 3 . . Impact Corruptions 7 | . . . 5 2 . . Robots Melted . | . . . . . . . Combat Hostiles . | . . . . . . . Parts Melted 2 | . 1 1 . . . . Heat Transferred 992 | . 892 100 . . . . Parts Sabotaged . | . . . . . . . Parts Stolen . | . . . . . . . Parts Stripped . | . . . . . . . Power Chain Reactions . | . . . . . . . Alert | -11 -10 -9 -8 -7 -6 -6 ------- Run | Yrd Mat Mat Mat Fac Fac DSF Peak Influence 407 | . 228 104 276 407 198 253 Initial 198 | . . 42 43 118 198 138 Average 118 | . 91 72 96 183 198 183 Maximum Alert Level 2 | . 1 . 1 2 . 1 Low Security (%) 83 | 100 98 100 85 65 100 60 Level 1 13 | . 1 . 14 26 . 39 Level 2 2 | . . . . 8 . . Level 3 . | . . . . . . . Level 4 . | . . . . . . . Level 5 . | . . . . . . . High Security . | . . . . . . . Max Security . | . . . . . . . Sterilizations 1 | . . . . . . 1 Squads Dispatched 18 | . 3 1 4 7 . 3 Investigation 4 | . 1 . 1 2 . . Extermination 3 | . . . . 3 . . Reinforcement 11 | . 2 1 3 2 . 3 Assault . | . . . . . . . Garrison . | . . . . . . . Intercept . | . . . . . . . Searches Triggered . | . . . . . . . Construction Impeded . | . . . . . . . Haulers Reinforced 1 | . . . . 1 . . Active Scanning Responses . | . . . . . . . Cargo Convoy Interrupts . | . . . . . . . Stealth | -11 -10 -9 -8 -7 -6 -6 --------- Run | Yrd Mat Mat Mat Fac Fac DSF Distress Signals 4 | . 1 2 1 . . . Communications Jammed . | . . . . . . . Distress Signals . | . . . . . . . Times Spotted 110 | . 15 13 37 28 . 17 Peak Tracking Total 14 | . 3 7 14 9 . 7 Tactical Retreats 20 | . 1 4 6 6 . 3 Traps | -11 -10 -9 -8 -7 -6 -6 ------- Run | Yrd Mat Mat Mat Fac Fac DSF Traps Triggered 3 | . . . . 2 . 1 Indirectly . | . . . . . . . Trap Hack Attempts . | . . . . . . . Triggered . | . . . . . . . Disarmed . | . . . . . . . Reprogrammed . | . . . . . . . Reused . | . . . . . . . Traps Extracted . | . . . . . . . Installed . | . . . . . . . Triggered . | . . . . . . . Machines | -11 -10 -9 -8 -7 -6 -6 ---------- Run | Yrd Mat Mat Mat Fac Fac DSF Machines Disabled . | . . . . . . . Max in Single Turn . | . . . . . . . Machines Repaired . | . . . . . . . Machines Dismantled . | . . . . . . . Machines Sabotaged . | . . . . . . . Overloaded Fab Kills . | . . . . . . . Hacking | -11 -10 -9 -8 -7 -6 -6 --------- Run | Yrd Mat Mat Mat Fac Fac DSF Machines Accessed 20 | . 4 4 3 8 1 . Terminals 15 | . 3 3 3 5 1 . Fabricators 1 | . . . . 1 . . Repair Stations 1 | . . . . 1 . . Recycling Units 3 | . 1 1 . 1 . . Scanalyzers . | . . . . . . . Garrison Access . | . . . . . . . Total Hacks 66 | . 8 15 20 22 1 . Successful 38 | . 6 8 14 9 1 . Failed 28 | . 2 7 6 13 . . Catastrophic 5 | . . 1 1 3 . . Database Lockouts . | . . . . . . . Manual 11 | . 2 3 2 4 . . Terminals 57 | . 7 12 20 17 1 . Fabricators 1 | . . . . 1 . . Repair Stations 2 | . . . . 2 . . Recycling Units 6 | . 1 3 . 2 . . Scanalyzers . | . . . . . . . Garrison Access . | . . . . . . . Terminal Hacks 32 | . 5 5 14 7 1 . Open DSF 3 | . . . . 2 1 . Emergency Access Points 1 | . 1 . . . . . Terminal Index 4 | . 1 1 1 1 . . Fabricator Index 2 | . . . 1 1 . . Scanalyzer Index 1 | . . . 1 . . . Alert Level 8 | . 2 1 2 3 . . Unreport Threat 1 | . . . 1 . . . Locate Traps 1 | . . 1 . . . . Dispatch Records 1 | . . . 1 . . . Maintenance Status 2 | . . 1 1 . . . Transport Status 1 | . . . 1 . . . Recall Investigation 1 | . . . 1 . . . Recall Reinforcements 1 | . . . 1 . . . Hauler Manifests 1 | . . . 1 . . . Zone Layout 4 | . 1 1 2 . . . Fabricator Hacks 1 | . . . . 1 . . Network Status 1 | . . . . 1 . . Repair Station Hacks . | . . . . . . . Recycling Unit Hacks 5 | . 1 3 . 1 . . Report Inventory 4 | . 1 2 . 1 . . Retrieve Components 1 | . . 1 . . . . Scanalyzer . | . . . . . . . Garrison Access Hacks . | . . . . . . . Unauthorized Hacks . | . . . . . . . Terminals . | . . . . . . . Fabricators . | . . . . . . . Repair Stations . | . . . . . . . Recycling Units . | . . . . . . . Scanalyzers . | . . . . . . . Garrison Access . | . . . . . . . Data Cores Recovered 1 | . . . 1 . . . Used 1 | . . . 1 . . . Hacking Detections 15 | . 3 2 2 7 1 . Full Trace Events 5 | . 1 . 2 2 . . Feedback Events 1 | . . . . 1 . . Hackware Fried 1 | . . . . 1 . . Feedback Blocked . | . . . . . . . Robot Schematics Acquired . | . . . . . . . Robots Built . | . . . . . . . Authchips . | . . . . . . . Time . | . . . . . . . Total Robot Build Rating . | . . . . . . . Part Schematics Acquired . | . . . . . . . Parts Built . | . . . . . . . Authchips . | . . . . . . . Time . | . . . . . . . Total Part Build Rating . | . . . . . . . Parts Repaired . | . . . . . . . Time . | . . . . . . . Parts Recycled . | . . . . . . . Recycled Matter . | . . . . . . . Retrieved Matter . | . . . . . . . Retrieved Components 3 | . . 3 . . . . Parts Scanalyzed . | . . . . . . . Part Schematics Acquired . | . . . . . . . Parts Damaged . | . . . . . . . Bothacking | -11 -10 -9 -8 -7 -6 -6 ------------ Run | Yrd Mat Mat Mat Fac Fac DSF Used RIF Installer . | . . . . . . . Robots Hacked 2 | . 1 . 1 . . . Non-combat 2 | . 1 . 1 . . . Combat . | . . . . . . . Robot Hacks Applied 5 | . 3 . 2 . . . parse_system 2 | . 1 . 1 . . . no_distress 2 | . 1 . 1 . . . check_alert 1 | . 1 . . . . . Relay Couplers Released . | . . . . . . . Fabnet Peak Effective % . | . . . . . . . Robots Rewired . | . . . . . . . Allies Hacked . | . . . . . . . Hacks Repelled . | . . . . . . . Allies | -11 -10 -9 -8 -7 -6 -6 -------- Run | Yrd Mat Mat Mat Fac Fac DSF Total Allies . | . . . . . . . Largest Group . | . . . . . . . Highest-Rated Group . | . . . . . . . Highest-Rated Ally . | . . . . . . . Total Orders . | . . . . . . . Ally Attacks . | . . . . . . . Total Damage . | . . . . . . . Kills . | . . . . . . . Allies Corrupted . | . . . . . . . Allies Melted . | . . . . . . . Intel | -11 -10 -9 -8 -7 -6 -6 ------- Run | Yrd Mat Mat Mat Fac Fac DSF Robot Analysis Total . | . . . . . . . Derelict Logs Recovered . | . . . . . . . Drone Launches . | . . . . . . . Drone Recoveries . | . . . . . . . Exploration | -11 -10 -9 -8 -7 -6 -6 ------------- Run | Yrd Mat Mat Mat Fac Fac DSF Turns Passed 2388 | 195 570 362 322 757 8 174 Spaces Moved 2737 | 69 472 373 428 1235 15 145 Core 30 | 7 . 1 10 . . 12 Treads . | . . . . . . . Legs . | . . . . . . . Wheels 545 | 62 472 8 . . . 3 Hover 1523 | . . 364 135 879 15 130 Flight 639 | . . . 283 356 . . Fastest Speed 32 | 50 80 56 32 32 51 48 Average Speed 55 | 79 80 57 40 48 51 58 Slowest Speed 250 | 100 80 250 120 120 51 116 Overloaded Moves . | . . . . . . . Propulsion Burnouts . | . . . . . . . Robots Hopped 9 | . . . 7 2 . . Cave-ins Triggered . | . . . . . . . Exploration Rate (%) 40 | 4 76 26 38 29 . 71 Regions Visited 6 Branch Regions . Pre-discovered Areas . | . . . . . . . Known Exits Taken 1 | . . . . . 1 . Unknown Exits Taken 5 | 1 1 1 1 1 . . Scrap Searched . | . . . . . . . Spaces Dug 10 | . . 6 1 3 . . Terrain Destroyed 10 | . . 6 1 3 . . Melee 10 | . . 6 1 3 . . Projectile . | . . . . . . . AOE . | . . . . . . . Terrain Rammed . | . . . . . . . Walls Destroyed . | . . . . . . . Machines Disabled . | . . . . . . . Actions | -11 -10 -9 -8 -7 -6 -6 --------- Run | Yrd Mat Mat Mat Fac Fac DSF Total 3360 | 205 591 501 519 1328 14 202 Wait 337 | 129 62 95 33 14 . 4 Move 2713 | 68 471 372 413 1230 14 145 Hop 9 | . . . 7 2 . . Pick Up 26 | 2 6 4 3 4 . 7 Fast Attach 52 | 6 1 4 5 23 . 13 Attach 17 | . . 1 6 4 . 6 Detach 14 | . . 1 5 7 . 1 Swap 22 | . 8 2 7 2 . 3 Drop 27 | . 3 9 5 5 . 5 Fire 40 | . 36 4 . . . . Melee 98 | . 4 9 30 37 . 18 Ram 5 | . . . 5 . . . Kick . | . . . . . . . Crush . | . . . . . . . Escape Stasis . | . . . . . . . Rewire . | . . . . . . . Trap . | . . . . . . . Miscellaneous . | . . . . . . . Route ------- -11/Scrapyard -10/Materials (discovered 5 exits: *Mat x3 / [*Min x2]) -9/Materials (discovered 2 exits: *Mat / [Min]) -8/Materials (discovered 2 exits: *Fac / [*Sto]) -7/Factory -6/Factory -6/DSF (discovered 1 exit: [*Fac]) History --------- Turn | Location | Event 6 | -11/Scrapyard | Discovered new exit (range 16) 196 | -11/Scrapyard | Entered Materials 316 | -10/Materials | Build established: Mutant 384 | -10/Materials | Discovered new exit (range 7) 389 | -10/Materials | Discovered new exit (range 16) 470 | -10/Materials | Discovered new exit (range 12) 546 | -10/Materials | Discovered new exit (range 6) 735 | -10/Materials | Discovered new exit (range 15) 766 | -10/Materials | Entered another Materials area 766 | -9/Materials | Evolved 2 slots: Utility x2 1090 | -9/Materials | Discovered new exit (range 20) 1119 | -9/Materials | Discovered new exit (range 16) 1128 | -9/Materials | Entered another Materials area 1128 | -8/Materials | Evolved 2 slots: Utility x2 1144 | -8/Materials | Discovered new exit (range 6) 1171 | -8/Materials | Build established: Hacker-Mutant 1376 | -8/Materials | Lost 5 parts (2p2u1w) 1430 | -8/Materials | Discovered new exit (range 20) 1434 | -8/Materials | Core integrity fell below 50% 1450 | -8/Materials | Entered Factory 1450 | -7/Factory | Evolved 2 slots: Propulsion x1, Utility x1 1474 | -7/Factory | Lost 5 parts (1p2n1u1w) 1511 | -7/Factory | Hacking Suite fried by hacking feedback 1927 | -7/Factory | Build established: Mutant 2141 | -7/Factory | Discovered new exit (range 19) 2207 | -7/Factory | Entered another Factory area 2207 | -6/Factory | Evolved 2 slots: Power x1, Utility x1 2214 | -6/Factory | Identified exit to DSF 2215 | -6/Factory | Entered DSF 2243 | -6/DSF | Additional patrols routed to DSF 2290 | -6/DSF | Lost 4 parts (3n1u) 2342 | -6/DSF | Discovered new exit (range 20) 2351 | -6/DSF | Lost 3 parts (1p1n1w) 2369 | -6/DSF | Core integrity fell below 50% 2378 | -6/DSF | Sterilization system engaged 2382 | -6/DSF | Core integrity fell below 20% 2389 | -6/DSF | Destroyed by X-62 Marksman with Pulse Rifle Last Messages --------------- 02365_ Airjet destroyed. 02366_ Imp. Deuterium Engine destroyed. 02368_ Weight Redist. System severed. 02368_ C-17 Slicer destroyed. 02371_ Melee Analysis Suite destroyed. 02372_ Imp. Melee Analysis Suite destroyed. 02372_ Angular Momentum Engine severed. 02375_ Penetrated by Slug. 02376_ Acquired Com. Wheel. 02378_ ALERT: Persistent threat exposed, engaging DSF rapid sterilization system. 02378_ Spear destroyed. 02379_ Acquired Com. Wheel. 02379_ Core Analyzer destroyed. 02381_ Slug penetrates Wall. 02381_ Com. Wheel destroyed. 02382_ Com. Wheel severed. 02382_ Acquired Airjet. 02384_ Acquired 21 matter. 02386_ Penetrated by Slug. Map ----- +----------------------------------------------------+ | | | | | | | | | | | | | | | | | | | | | | | | | | | | | | | | | ?????????????????????????????????????? | | ?????????????????????????????????????? | | ?????????????????????????????????????? | | ?????????????????????????????????????# | | ?????????????????????????????????????# | | ?????????????????????????????????????# | | ??????##????????????#########???????## | | ??????#"""???########!!===!!#########" | | ??????#"""""##!!#!!!#!!= =!!#///#//##" | | ??????#""< @ *]!== | | ???#""""" x c! p/% Y / | | ????###"" ##!!#!!!###=/ ###[[[#//##= | | ??????### #?#!!#!!!###* ###[[[#//### | | ????????# ??######## **########## | | ???????#! ??????????#// *#??????#[[ | | ???????#!???????????#// *#??????#[[ | | ???????#????????????### ###??????### | | ????????????????????#== !!#??????# | | ????????????????????#== !!#??????# | | ????????????????????#== !!#??????# | | ????????????????????### ###???###### | | ?????????????????????## #?#|??#!!!?# | | ?????????????????????#" ##|||#!!!## | | ????????????????????? %" | | ????????????????????? " H | | ???????????????????? | | ???????????????????!## ##!!! !!!## | | ???????????????????!?## ###!!!#!!!?# | | ??????????????????#?### #?###?###### | | ?????????????????????!! |????????#== | | ?????????????????????!! |????????# | | ??????????????????????! |????????# | | ????????????????????### ###??????### | | ????????????????????# !!#??????# ! | +----------------------------------------------------+ Best States ------------- Heat Dissipation 37 Energy Generation 29 Energy Capacity 490 Matter Stores 300 Matter Capacity 300 Sight Range 20 Robot Scan Range 16 Terrain Scan Density 85 ECM Strength 1 Additional Mass Support 6 Armor Coverage 150 Evasion (%) 71 Melee Accuracy 11 Core Analysis 6 Offensive Hacking 20 Defensive Hacking 10 Item Schematics ----------------- None Robot Schematics ------------------ None Fabricated ------------ Nothing Alien Tech Used ----------------- None Achievements -------------- Deadly Force GoHome() I Spy Challenges ------------ None Game ------ Seed StormMinesnifferInsulator Manual? 0 Play Time 01:28:52 Cumulative 9.9 hours Start 2024.04.17 @ 00:05:42 End 2024.04.17 @ 01:35:00 Sessions 1 Manual Loads 0 Difficulty Rogue Special Mode None Game No. 9 Rogue 9 Adventurer 0 Explorer 0 Win Type - Total 0 Types 0/0/0/0/0/0/0/0/0 Lore% 11 Gallery% 11 Achievement% 10 Wizard Run 0 Options --------- Layout 0 ASCII 1 Keyboard 1 Movement Vi Keybinds 0 Fullscreen 1 Font 20/SmallcapsGlow Map View 66x50 Zoom Use 0% Tactical HUD 1 Map Filters NONE Filters NONE Steam 1 RUN: 5bc14248-b201-4b7f-bbf4-825e78780c48